fUST/lending_fUST_20250423
["ID","MTS","AMOUNT","RATE_DAILY","PERIOD"]
[358765636,1745417447893,-871.1,0.00019452,2]
[358765637,1745417447903,-397.59169717,0.00019452,2]
[358765638,1745417447912,-500.0,0.00019452,2]
[358765639,1745417447923,-500.0,0.00019452,2]
[358765640,1745417447933,-500.0,0.00019452,2]
[358765641,1745417447944,-500.0,0.00019452,2]
[358765642,1745417447953,-500.0,0.00019452,2]
[358765643,1745417447964,-500.0,0.00019452,2]
[358765644,1745417447973,-500.0,0.00019452,2]
[358765645,1745417447984,-500.0,0.00019452,2]
[358765646,1745417447995,-500.0,0.00019452,2]
[358765647,1745417448004,-1272.94,0.00019452,2]
[358765648,1745417448014,-851.24,0.00019452,2]
[358765649,1745417448024,-1233.18,0.00019452,2]
[358765650,1745417448034,-307.01133728,0.00019452,2]
[358765651,1745417448045,-500.0,0.00019452,2]
[358765652,1745417448055,-500.0,0.00019452,2]
[358765653,1745417448065,-505.44133215,0.00019452,2]
[358765654,1745417448075,-654.47,0.00019452,2]
[358765655,1745417448085,-610.54,0.00019452,2]
[358765656,1745417448095,-500.0,0.00019452,2]
[358765657,1745417448106,-500.0,0.00019452,2]
[358765658,1745417448118,-500.0,0.00019452,2]
[358765659,1745417448135,-516.7,0.00019452,2]
[358765660,1745417448152,-500.0,0.00019452,2]
[358765661,1745417448163,-500.0,0.00019452,2]
[358765662,1745417448176,-500.0,0.00019452,2]
[358765663,1745417448188,-500.0,0.00019452,2]
[358765664,1745417448202,-500.0,0.00019452,2]
[358765665,1745417448213,-500.0,0.00019452,2]
[358765666,1745417448223,-500.0,0.00019452,2]
[358765667,1745417448248,-500.0,0.00019452,2]
[358765668,1745417448273,-500.0,0.00019452,2]
[358765669,1745417448298,-500.0,0.00019452,2]
[358765670,1745417448323,-500.0,0.00019452,2]
[358765671,1745417448348,-500.0,0.00019452,2]
[358765672,1745417448370,-500.0,0.00019452,2]
[358765673,1745417448391,-500.0,0.00019452,2]
[358765674,1745417448408,-500.0,0.00019452,2]
[358765675,1745417448432,-500.0,0.00019452,2]
[358765676,1745417448456,-500.0,0.00019452,2]
[358765677,1745417448480,-151.0,0.00019452,2]
[358765678,1745417448494,-530.40608626,0.00019452,2]
[358765679,1745417448519,-500.0,0.00019452,2]
[358765680,1745417448535,-500.0,0.00019452,2]
[358765681,1745417448556,-151.0,0.00019452,2]
[358765682,1745417448575,-3102.55,0.00019452,2]
[358765683,1745417448594,-500.0,0.00019452,2]
[358765684,1745417448613,-694.87,0.00019452,2]
[358765685,1745417448632,-500.0,0.00019452,2]
[358765686,1745417448650,-500.0,0.00019452,2]
[358765687,1745417448667,-500.0,0.00019452,2]
[358765688,1745417448685,-500.0,0.00019452,2]
[358765689,1745417448704,-985.43,0.00019452,2]
[358765690,1745417448722,-487.37801312,0.00019452,2]
[358765691,1745417448741,-500.0,0.00019452,2]
[358765692,1745417448759,-500.0,0.00019452,2]
[358765693,1745417448776,-500.0,0.00019452,2]
[358765694,1745417448797,-151.0,0.00019452,2]
[358765695,1745417448816,-824.11,0.00019452,2]
[358765696,1745417448834,-500.0,0.00019452,2]
[358765697,1745417448852,-151.0,0.00019452,2]
[358765698,1745417448870,-202.888917,0.00019452,2]
[358765699,1745417448886,-500.0,0.00019452,2]
[358765700,1745417448904,-500.0,0.00019452,2]
[358765701,1745417448921,-500.0,0.00019452,2]
[358765702,1745417448940,-500.0,0.00019452,2]
[358765703,1745417448957,-1426.9,0.00019452,2]
[358765704,1745417448976,-1113.867372,0.00019452,2]
[358765705,1745417448996,-1318.8,0.00019452,2]
[358765706,1745417449015,-500.0,0.00019452,2]
[358765707,1745417449035,-500.0,0.00019452,2]
[358765708,1745417449054,-500.0,0.00019452,2]
[358765709,1745417449074,-665.67,0.00019452,2]
[358765710,1745417449092,-500.0,0.00019452,2]
[358765711,1745417449112,-1113.867372,0.00019452,2]
[358765712,1745417449131,-908.5,0.00019452,2]
[358765713,1745417449149,-559.85,0.00019452,2]
[358765714,1745417449168,-500.0,0.00019452,2]
[358765715,1745417449186,-500.0,0.00019452,2]
[358765716,1745417449205,-831.8,0.00019452,2]
[358765717,1745417449223,-500.0,0.00019452,2]
[358765718,1745417449240,-823.32,0.00019452,2]
[358765719,1745417449260,-1133.42,0.00019452,2]
[358765720,1745417449276,-408.676244,0.00019452,2]
[358765721,1745417449296,-500.0,0.00019452,2]
[358765722,1745417449316,-538.45,0.00019452,2]
[358765723,1745417449343,-408.676244,0.00019452,2]
[358765724,1745417449375,-659.94,0.00019452,2]
[358765725,1745417449403,-500.0,0.00019452,2]
[358765726,1745417449434,-825.58,0.00019452,2]
[358765727,1745417449468,-500.0,0.00019452,2]
[358765728,1745417449501,-500.0,0.00019452,2]
[358765729,1745417449534,-500.0,0.00019452,2]
[358765730,1745417449560,-500.0,0.00019452,2]
[358765731,1745417449584,-500.0,0.00019452,2]
[358765732,1745417449606,-500.0,0.00019452,2]
[358765733,1745417449625,-500.0,0.00019452,2]
[358765734,1745417449635,-500.0,0.00019452,2]
[358765735,1745417449645,-500.0,0.00019452,2]
[358765736,1745417449655,-500.0,0.00019452,2]
[358765737,1745417449917,-500.0,0.00019452,2]
[358765738,1745417449938,-500.0,0.00019452,2]
[358765739,1745417449950,-629.62,0.00019452,2]
[358765740,1745417449960,-500.0,0.00019452,2]
[358765741,1745417449970,-500.0,0.00019452,2]
[358765742,1745417449980,-3229.43,0.00019452,2]
[358765743,1745417449990,-581.61,0.00019452,2]
[358765744,1745417450000,-500.0,0.00019452,2]
[358765745,1745417450011,-500.0,0.00019452,2]
[358765746,1745417450021,-500.0,0.00019452,2]
[358765747,1745417450031,-500.0,0.00019452,2]
[358765748,1745417450041,-500.0,0.00019452,2]
[358765749,1745417450051,-500.0,0.00019452,2]
[358765750,1745417450060,-584.78,0.00019452,2]
[358765751,1745417450070,-500.0,0.00019452,2]
[358765752,1745417450080,-500.0,0.00019452,2]
[358765753,1745417450089,-1455.5,0.00019452,2]
[358765754,1745417450099,-151.0,0.00019452,2]
[358765755,1745417450108,-151.0,0.00019452,2]
[358765756,1745417450119,-151.0,0.00019452,2]
[358765757,1745417450128,-500.0,0.00019452,2]
[358765758,1745417450138,-500.0,0.00019452,2]
[358765759,1745417450147,-500.0,0.00019452,2]
[358765760,1745417450157,-177.509781,0.00019452,2]
[358765761,1745417450168,-500.0,0.00019452,2]
[358765762,1745417450178,-612.85,0.00019452,2]
[358765763,1745417450187,-150.91502771,0.00019452,2]
[358765764,1745417450198,-500.0,0.00019452,2]
[358765765,1745417450207,-151.0,0.00019452,2]
[358765766,1745417450217,-541.41,0.00019452,2]
[358765767,1745417450226,-151.0,0.00019452,2]
[358765768,1745417450236,-500.0,0.00019452,2]
[358765769,1745417450245,-500.0,0.00019452,2]
[358765770,1745417450255,-500.0,0.00019452,2]
[358765771,1745417450264,-500.0,0.00019452,2]
[358765772,1745417450274,-622.41,0.00019452,2]
[358765773,1745417450284,-274.246958,0.00019452,2]
[358765774,1745417450294,-500.0,0.00019452,2]
[358765775,1745417450304,-700.4,0.00019452,2]
[358765776,1745417450313,-500.0,0.00019452,2]
[358765777,1745417450323,-5325.87,0.00019452,2]
[358765778,1745417450333,-274.246958,0.00019452,2]
[358765779,1745417450347,-1035.11,0.00019452,2]
[358765780,1745417450356,-500.0,0.00019452,2]
[358765781,1745417450366,-875.07,0.00019452,2]
[358765782,1745417450376,-500.0,0.00019452,2]
[358765783,1745417450386,-500.0,0.00019452,2]
[358765784,1745417450395,-1326.78,0.00019452,2]
[358765785,1745417450405,-500.0,0.00019452,2]
[358765786,1745417450415,-500.0,0.00019452,2]
[358765787,1745417450426,-1507.64,0.00019452,2]
[358765788,1745417450436,-500.0,0.00019452,2]
[358765789,1745417450447,-500.0,0.00019452,2]
[358765790,1745417450456,-500.0,0.00019452,2]
[358765791,1745417450465,-500.0,0.00019452,2]
[358765792,1745417450475,-500.0,0.00019452,2]
[358765793,1745417450485,-500.0,0.00019452,2]
[358765794,1745417450494,-500.0,0.00019452,2]
[358765795,1745417450504,-500.0,0.00019452,2]
[358765796,1745417450513,-151.0,0.00019452,2]
[358765797,1745417450523,-151.0,0.00019452,2]
[358765798,1745417450532,-151.0,0.00019452,2]
[358765799,1745417450541,-500.0,0.00019452,2]
[358765800,1745417450551,-500.0,0.00019452,2]
[358765801,1745417450560,-151.0,0.00019452,2]
[358765802,1745417450570,-152.081631,0.00019452,2]
[358765803,1745417450580,-500.0,0.00019452,2]
[358765804,1745417450590,-576.87,0.00019452,2]
[358765805,1745417450600,-500.0,0.00019452,2]
[358765806,1745417450610,-500.0,0.00019452,2]
[358765807,1745417450620,-400.51768501,0.00019452,2]
[358765808,1745417450630,-969.48,0.00019452,2]
[358765809,1745417450640,-500.0,0.00019452,2]
[358765810,1745417450650,-673.49,0.00019452,2]
[358765811,1745417450661,-504.58499733,0.00019452,2]
[358765812,1745417450672,-615.6,0.00019452,2]
[358765813,1745417450682,-500.0,0.00019452,2]
[358765814,1745417450694,-1479.43,0.00019452,2]
[358765815,1745417450704,-500.0,0.00019452,2]
[358765816,1745417450714,-500.0,0.00019452,2]
[358765817,1745417450724,-500.0,0.00019452,2]
[358765818,1745417450734,-812.5,0.00019452,2]
[358765819,1745417450744,-500.0,0.00019452,2]
[358765820,1745417450754,-500.0,0.00019452,2]
[358765821,1745417450765,-500.0,0.00019452,2]
[358765822,1745417450775,-500.0,0.00019452,2]
[358765823,1745417450784,-500.0,0.00019452,2]
[358765824,1745417450794,-500.0,0.00019452,2]
[358765825,1745417450804,-500.0,0.00019452,2]
[358765826,1745417450815,-500.0,0.00019452,2]
[358765827,1745417450824,-500.0,0.00019452,2]
[358765828,1745417450835,-628.7,0.00019452,2]
[358765829,1745417450845,-500.0,0.00019452,2]
[358765830,1745417450855,-1026.07,0.00019452,2]
[358765831,1745417450865,-579.76,0.00019452,2]
[358765832,1745417450875,-500.0,0.00019452,2]
[358765833,1745417450886,-1017.22,0.00019452,2]
[358765834,1745417450896,-500.0,0.00019452,2]
[358765835,1745417450907,-502.8468255,0.00019452,2]
[358765836,1745417450917,-554.31,0.00019452,2]
[358765837,1745417450928,-500.0,0.00019452,2]
[358765838,1745417450938,-501.42,0.00019452,2]
[358765839,1745417450949,-1094.14,0.00019452,2]
[358765840,1745417450959,-946.14,0.00019452,2]
[358765841,1745417450968,-500.0,0.00019452,2]
[358765842,1745417450979,-500.0,0.00019452,2]
[358765843,1745417450988,-500.0,0.00019452,2]
[358765844,1745417450998,-500.0,0.00019452,2]
[358765845,1745417451008,-473.329652,0.00019452,2]
[358765846,1745417451018,-473.329652,0.00019452,2]
[358765847,1745417451028,-473.329652,0.00019452,2]
[358765848,1745417451038,-500.0,0.00019452,2]
[358765849,1745417451047,-500.0,0.00019452,2]
[358765850,1745417451058,-500.0,0.00019452,2]
[358765851,1745417451067,-7580.08,0.00019452,2]
[358765852,1745417451077,-1818.96,0.00019452,2]
[358765853,1745417451087,-473.329652,0.00019452,2]
[358765854,1745417451097,-500.0,0.00019452,2]
[358765855,1745417451108,-473.329652,0.00019452,2]
[358765856,1745417451118,-473.329652,0.00019452,2]
[358765857,1745417451128,-500.0,0.00019452,2]
[358765858,1745417451139,-2485.62,0.00019452,2]
[358765859,1745417451149,-500.0,0.00019452,2]
[358765860,1745417451159,-500.0,0.00019452,2]
[358765861,1745417451168,-500.0,0.00019452,2]
[358765862,1745417451178,-500.0,0.00019452,2]
[358765863,1745417451187,-3141.79,0.00019452,2]
[358765864,1745417451199,-500.0,0.00019452,2]
[358765865,1745417451209,-501.72675394,0.00019452,2]
[358765866,1745417451218,-583.84,0.00019452,2]
[358765867,1745417451229,-500.0,0.00019452,2]
[358765868,1745417451238,-500.0,0.00019452,2]
[358765869,1745417451248,-500.0,0.00019452,2]
[358765870,1745417451257,-500.0,0.00019452,2]
[358765871,1745417451267,-500.0,0.00019452,2]
[358765872,1745417451277,-1069.02,0.00019452,2]
[358765873,1745417451287,-500.0,0.00019452,2]
[358765874,1745417451296,-5345.67,0.00019452,2]
[358765875,1745417451306,-500.0,0.00019452,2]
[358765876,1745417451316,-500.0,0.00019452,2]
[358765877,1745417451325,-500.0,0.00019452,2]
[358765878,1745417451339,-558.15253874,0.00019452,2]
[358765879,1745417451348,-500.0,0.00019452,2]
[358765880,1745417451358,-500.0,0.00019452,2]
[358765881,1745417451368,-1799.76,0.00019452,2]
[358765882,1745417451378,-500.0,0.00019452,2]
[358765883,1745417451388,-500.0,0.00019452,2]
[358765884,1745417451399,-5305.65,0.00019452,2]
[358765885,1745417451409,-563.18,0.00019452,2]
[358765886,1745417451420,-500.0,0.00019452,2]
[358765887,1745417451430,-500.0,0.00019452,2]
[358765888,1745417451440,-500.0,0.00019452,2]
[358765889,1745417451452,-526.74,0.00019452,2]
[358765890,1745417451462,-500.0,0.00019452,2]
[358765891,1745417451472,-500.0,0.00019452,2]
[358765892,1745417451482,-1275.08,0.00019452,2]
[358765893,1745417451493,-1219.1,0.00019452,2]
[358765894,1745417451503,-500.0,0.00019452,2]
[358765895,1745417451512,-500.0,0.00019452,2]
[358765896,1745417451522,-368.43137594,0.00019452,2]
[358765897,1745417451533,-500.0,0.00019452,2]
[358765898,1745417451543,-500.0,0.00019452,2]
[358765899,1745417451553,-745.11,0.00019452,2]
[358765900,1745417451563,-500.0,0.00019452,2]
[358765901,1745417451573,-1059.4,0.00019452,2]
[358765902,1745417451583,-500.0,0.00019452,2]
[358765903,1745417451593,-503.17512507,0.00019452,2]
[358765904,1745417451603,-500.0,0.00019452,2]
[358765905,1745417451614,-2816.35,0.00019452,2]
[358765906,1745417451623,-500.0,0.00019452,2]
[358765907,1745417451633,-500.0,0.00019452,2]
[358765908,1745417451643,-562.85708138,0.00019452,2]
[358765909,1745417451653,-500.0,0.00019452,2]
[358765910,1745417451664,-2818.53,0.00019452,2]
[358765911,1745417451674,-500.0,0.00019452,2]
[358765912,1745417451684,-651.14,0.00019452,2]
[358765913,1745417451694,-500.0,0.00019452,2]
[358765914,1745417451704,-876.27,0.00019452,2]
[358765915,1745417451714,-500.0,0.00019452,2]
[358765916,1745417451723,-602.48,0.00019452,2]
[358765917,1745417451733,-500.0,0.00019452,2]
[358765918,1745417451743,-500.0,0.00019452,2]
[358765919,1745417451753,-500.0,0.00019452,2]
[358765920,1745417451763,-500.0,0.00019452,2]
[358765921,1745417451773,-457.589753,0.00019452,2]
[358765922,1745417451783,-3375.89,0.00019452,2]
[358765923,1745417451792,-457.589753,0.00019452,2]
[358765924,1745417451802,-500.0,0.00019452,2]
[358765925,1745417451812,-457.589753,0.00019452,2]
[358765926,1745417451822,-457.589753,0.00019452,2]
[358765927,1745417451834,-500.0,0.00019452,2]
[358765928,1745417451845,-500.0,0.00019452,2]
[358765929,1745417451858,-502.83751152,0.00019452,2]
[358765930,1745417451869,-500.0,0.00019452,2]
[358765931,1745417451879,-500.0,0.00019452,2]
[358765932,1745417451889,-500.0,0.00019452,2]
[358765933,1745417451899,-500.0,0.00019452,2]
[358765934,1745417451910,-929.16,0.00019452,2]
[358765935,1745417451919,-500.0,0.00019452,2]
[358765936,1745417451930,-500.0,0.00019452,2]
[358765937,1745417451940,-500.0,0.00019452,2]
[358765938,1745417451952,-500.0,0.00019452,2]
[358765939,1745417451962,-500.0,0.00019452,2]
[358765940,1745417451972,-500.0,0.00019452,2]
[358765941,1745417451983,-1339.23,0.00019452,2]
[358765942,1745417451992,-500.0,0.00019452,2]
[358765943,1745417452002,-500.0,0.00019452,2]
[358765944,1745417452012,-502.60548878,0.00019452,2]
[358765945,1745417452023,-500.0,0.00019452,2]
[358765946,1745417452033,-500.0,0.00019452,2]
[358765947,1745417452042,-500.0,0.00019452,2]
[358765948,1745417452053,-1001.92,0.00019452,2]
[358765949,1745417452063,-500.0,0.00019452,2]
[358765950,1745417452073,-500.0,0.00019452,2]
[358765951,1745417452083,-500.0,0.00019452,2]
[358765952,1745417452093,-500.0,0.00019452,2]
[358765953,1745417452103,-4630.58,0.00019452,2]
[358765954,1745417452113,-500.0,0.00019452,2]
[358765955,1745417452123,-570.74764126,0.00019452,2]
[358765956,1745417452133,-369.46976475,0.00019452,2]
[358765957,1745417452156,-13562.65,0.00019452,2]
[358765958,1745417452165,-349.23370187,0.00019452,2]
[358765959,1745417452665,-163.55629813,0.00019452,2]
[358765960,1745417452677,-500.0,0.00019452,2]
[358765961,1745417452687,-500.0,0.00019452,2]
[358765962,1745417452699,-1135.65,0.00019452,2]
[358765963,1745417452708,-500.0,0.00019452,2]
[358765964,1745417452718,-537.87,0.00019452,2]
[358765965,1745417452728,-172.766559,0.00019452,2]
[358765966,1745417452738,-172.766559,0.00019452,2]
[358765967,1745417452748,-608.51,0.00019452,2]
[358765968,1745417452757,-172.766559,0.00019452,2]
[358765969,1745417452767,-500.0,0.00019452,2]
[358765970,1745417452776,-500.0,0.00019452,2]
[358765971,1745417452786,-500.0,0.00019452,2]
[358765972,1745417452796,-500.0,0.00019452,2]
[358765973,1745417452806,-500.0,0.00019452,2]
[358765974,1745417452816,-500.0,0.00019452,2]
[358765975,1745417452825,-172.766559,0.00019452,2]
[358765976,1745417452835,-172.766559,0.00019452,2]
[358765977,1745417452844,-172.766559,0.00019452,2]
[358765978,1745417452854,-1417.04,0.00019452,2]
[358765979,1745417452863,-896.88,0.00019452,2]
[358765980,1745417452874,-500.0,0.00019452,2]
[358765981,1745417452883,-1199.50639328,0.00019452,2]
[358765982,1745417452895,-1863.99763445,0.00019452,2]
[358765983,1745417452909,-2004.40474073,0.00019452,2]
[358765984,1745417452921,-8093.77123154,0.00019452,2]
[358765985,1745417452930,-4895.99,0.00019452,2]
[358765986,1745417452940,-843.22,0.00019452,2]
[358765987,1745417452952,-500.0,0.00019452,2]
[358765988,1745417452962,-500.0,0.00019452,2]
[358765989,1745417452971,-500.0,0.00019452,2]
[358765990,1745417452981,-500.0,0.00019452,2]
[358765991,1745417452991,-500.0,0.00019452,2]
[358765992,1745417453000,-507.13101537,0.00019452,2]
[358765993,1745417453009,-500.0,0.00019452,2]
[358765994,1745417453018,-500.0,0.00019452,2]
[358765995,1745417453028,-793.28,0.00019452,2]
[358765996,1745417453038,-302.13836539,0.00019452,2]
[358765997,1745417453048,-500.0,0.00019452,2]
[358765998,1745417453058,-500.0,0.00019452,2]
[358765999,1745417453067,-500.0,0.00019452,2]
[358766000,1745417453077,-500.0,0.00019452,2]
[358766001,1745417453087,-169.88910035,0.00019452,2]
[358766002,1745417453512,-151.0,0.00019178,2]
[358766003,1745417453523,-310.69512936,0.00019178,2]
[358766004,1745417453535,-189.30487064,0.00019178,2]
[358766005,1745417453545,-151.0,0.00019178,2]
[358766006,1745417453555,-500.0,0.00019178,2]
[358766007,1745417453565,-151.0,0.00019452,2]
[358766008,1745417453575,-330.11089965,0.00019452,2]
[358766009,1745417453584,-500.0,0.00019452,2]
[358766010,1745417453594,-2588.54,0.00019452,2]
[358766011,1745417453603,-541.28,0.00019452,2]
[358766012,1745417453613,-653.63,0.00019452,2]
[358766013,1745417453623,-500.0,0.00019452,2]
[358766014,1745417453633,-500.0,0.00019452,2]
[358766015,1745417453642,-500.0,0.00019452,2]
[358766016,1745417453652,-500.0,0.00019452,2]
[358766017,1745417453661,-451.14333863,0.00019452,2]
[358766018,1745417453671,-204.53531915,0.00019452,2]
[358766019,1745417453754,-501.63901551,0.00019178,2]
[358766020,1745417453764,-295.46468085,0.00019452,2]
[358766021,1745417453775,-500.0,0.00019452,2]
[358766022,1745417453785,-500.0,0.00019473,2]
[358766023,1745417453795,-500.0,0.00019473,2]
[358766024,1745417453805,-500.0,0.000195,2]
[358766025,1745417453815,-2547.07354444,0.00019692,2]
[358766028,1745417454417,-500.0,0.00019178,2]
[358766029,1745417454428,-289.8158653,0.00019178,2]
[358766030,1745417454488,-210.1841347,0.00019178,2]
[358766031,1745417454499,-687.39821489,0.00019692,2]
[358766032,1745417454510,-155.0,0.00019692,2]
[358766033,1745417454520,-155.0,0.00019692,2]
[358766034,1745417454529,-287.09778638,0.00019692,2]
[358766035,1745417454539,-248.51570693,0.00019692,2]
[358766036,1745417454549,-151.0,0.000197,2]
[358766037,1745417454559,-151.0,0.000197,2]
[358766038,1745417454568,-151.819864,0.00019704,2]
[358766039,1745417454578,-151.819864,0.00019704,2]
[358766040,1745417454588,-151.0,0.00019704,2]
[358766041,1745417454597,-187.054327,0.00019704,2]
[358766042,1745417454607,-187.054327,0.00019704,2]
[358766043,1745417454618,-151.0,0.00019704,2]
[358766044,1745417454628,-151.0,0.00019704,2]
[358766045,1745417454637,-151.0,0.00019704,2]
[358766046,1745417454647,-151.0,0.00019704,2]
[358766047,1745417454656,-151.0,0.00019704,2]
[358766049,1745417454666,-408.676244,0.00019704,2]
[358766050,1745417454676,-408.676244,0.00019704,2]
[358766051,1745417454685,-274.246958,0.00019704,2]
[358766052,1745417454697,-274.246958,0.00019704,2]
[358766053,1745417454903,-160.0,0.00019725,2]
[358766054,1745417454926,-151.0,0.00019725,2]
[358766055,1745417454950,-245.0,0.00019726,2]
[358766057,1745417454988,-500.0,0.00019726,2]
[358766058,1745417455027,-151.0,0.00019726,2]
[358766059,1745417455055,-198.0,0.00019726,2]
[358766060,1745417455065,-151.0,0.00019726,2]
[358766061,1745417455075,-500.0,0.00019726,2]
[358766062,1745417455085,-151.0,0.00019726,2]
[358766063,1745417455095,-500.0,0.00019726,2]
[358766064,1745417455105,-151.0,0.00019726,2]
[358766065,1745417455115,-500.0,0.00019726,2]
[358766066,1745417455125,-151.0,0.00019726,2]
[358766067,1745417455134,-151.0,0.00019726,2]
[358766068,1745417455145,-151.0,0.00019726,2]
[358766069,1745417455155,-151.0,0.00019726,2]
[358766070,1745417455164,-151.0,0.00019726,2]
[358766071,1745417455174,-235.133499,0.00019726,2]
[358766072,1745417455184,-235.133499,0.00019726,2]
[358766073,1745417455194,-235.133499,0.00019726,2]
[358766075,1745417455204,-235.133499,0.00019726,2]
[358766076,1745417455214,-151.0,0.00019726,2]
[358766077,1745417455223,-151.0,0.00019726,2]
[358766078,1745417455232,-151.0,0.00019726,2]
[358766079,1745417455242,-155.2608,0.00019726,2]
[358766080,1745417455251,-161.36956,0.00019726,2]
[358766081,1745417455261,-161.36956,0.00019726,2]
[358766082,1745417455271,-161.36956,0.00019726,2]
[358766083,1745417455280,-161.36956,0.00019726,2]
[358766084,1745417455290,-151.0,0.00019726,2]
[358766085,1745417455300,-151.0,0.00019726,2]
[358766086,1745417455309,-151.0,0.00019726,2]
[358766087,1745417455319,-151.0,0.00019726,2]
[358766088,1745417455328,-151.0,0.00019726,2]
[358766089,1745417455339,-151.0,0.00019726,2]
[358766090,1745417455350,-151.0,0.00019726,2]
[358766091,1745417455360,-151.0,0.00019726,2]
[358766092,1745417455369,-151.0,0.00019726,2]
[358766093,1745417455380,-151.0,0.00019726,2]
[358766094,1745417455390,-155.101011,0.00019726,2]
[358766095,1745417455400,-151.0,0.00019726,2]
[358766096,1745417455410,-151.0,0.00019726,2]
[358766097,1745417455420,-151.0,0.00019726,2]
[358766098,1745417455430,-151.0,0.00019726,2]
[358766099,1745417455439,-151.0,0.00019726,2]
[358766100,1745417455450,-279.297334,0.00019726,2]
[358766101,1745417455460,-151.0,0.00019726,2]
[358766102,1745417455470,-151.0,0.00019726,2]
[358766103,1745417455479,-152.830499,0.00019726,2]
[358766104,1745417455489,-324.20609,0.00019726,2]
[358766105,1745417455498,-324.20609,0.00019726,2]
[358766106,1745417455509,-324.20609,0.00019726,2]
[358766107,1745417455518,-324.20609,0.00019726,2]
[358766108,1745417455528,-324.20609,0.00019726,2]
[358766109,1745417455537,-324.20609,0.00019726,2]
[358766110,1745417455548,-1222.560866,0.00019726,2]
[358766111,1745417455557,-1222.560866,0.00019726,2]
[358766112,1745417455567,-371.977666,0.00019726,2]
[358766113,1745417455577,-371.977666,0.00019726,2]
[358766114,1745417455586,-371.977666,0.00019726,2]
[358766115,1745417455596,-371.977666,0.00019726,2]
[358766116,1745417455605,-371.977666,0.00019726,2]
[358766117,1745417455615,-371.977666,0.00019726,2]
[358766118,1745417455625,-371.502461,0.00019726,2]
[358766119,1745417455634,-371.502461,0.00019726,2]
[358766120,1745417455644,-371.502461,0.00019726,2]
[358766121,1745417455654,-371.502461,0.00019726,2]
[358766122,1745417455664,-371.502461,0.00019726,2]
[358766123,1745417455674,-371.502461,0.00019726,2]
[358766124,1745417455683,-1511.217122,0.00019726,2]
[358766125,1745417455693,-1511.217122,0.00019726,2]
[358766126,1745417455706,-1345.32213918,0.00019726,2]
[358766127,1745417455722,-165.89498282,0.00019726,2]
[358766128,1745417455731,-1511.217122,0.00019726,2]
[358766129,1745417455741,-1511.217122,0.00019726,2]
[358766130,1745417455750,-1511.217122,0.00019726,2]
[358766131,1745417455759,-327.9297791,0.00019726,2]
[358766139,1745417475587,-152.36538298,0.00018998,2]
[358766140,1745417475618,-83.91976711,0.00018998,2]
[358766141,1745417490295,-237.10674035,0.000189,2]
[358766142,1745417494681,5000.0,0.00018,2]
[358766145,1745417589642,-160.41908703,0.00018247,2]
[358766146,1745417605552,-49.35625247,0.00018247,2]
[358766147,1745417605577,-200.64374753,0.00018888,2]
[358766157,1745417676313,-196.22712915,0.00018147,2]
[358766186,1745417763776,-53.77287085,0.00018147,2]